bitfinex/quotes_BTCUSD_20240803
["timestamp","ask_amount","ask_price","bid_price","bid_amount"]
[1722728018867,0.0267863,60843.0,60842.0,0.45186715]
[1722728020067,0.13239121,60843.0,60842.0,0.45186715]
[1722728020689,0.05021321,60843.0,60842.0,0.45186715]
[1722728021524,0.05021713,60843.0,60842.0,0.45186715]
[1722728021883,0.05021713,60843.0,60842.0,0.49807137]
[1722728022085,0.001,60843.0,60842.0,0.49807137]
[1722728023451,0.02678636,60843.0,60842.0,0.49807137]
[1722728023702,0.001,60843.0,60842.0,0.49807137]
[1722728025342,0.001,60843.0,60842.0,0.45186715]
[1722728025563,0.083178,60843.0,60842.0,0.45186715]
[1722728025991,0.083178,60843.0,60842.0,0.4321]
[1722728026215,0.13240053,60843.0,60842.0,0.4321]
[1722728026423,0.74937583,60843.0,60842.0,0.4321]
[1722728026638,0.7494718,60843.0,60842.0,0.1952]
[1722728026849,0.5851148,60843.0,60842.0,0.1952]
[1722728027046,0.61090263,60843.0,60842.0,0.1952]
[1722728027275,0.5851148,60843.0,60842.0,0.1952]
[1722728027893,0.58528863,60843.0,60842.0,0.1952]
[1722728028364,0.48721566,60843.0,60842.0,0.1952]
[1722728028573,0.65912003,60843.0,60842.0,0.1952]
[1722728029668,0.82347703,60843.0,60842.0,0.1952]
[1722728029836,0.84808964,60843.0,60842.0,0.1952]
[1722728030259,0.246547,60840.0,60839.0,0.010175]
[1722728030436,0.65813139,60840.0,60839.0,0.010175]
[1722728031058,0.58430063,60840.0,60839.0,0.010175]
[1722728031417,0.48622766,60840.0,60839.0,0.010175]
[1722728031642,0.58767152,60840.0,60839.0,0.010175]
[1722728031848,0.82586728,60840.0,60839.0,0.010175]
[1722728032043,0.75203652,60840.0,60839.0,0.010175]
[1722728032325,0.75303652,60840.0,60839.0,0.010175]
[1722728032507,1.01740152,60840.0,60839.0,0.010175]
[1722728032954,1.14045279,60840.0,60839.0,0.010175]
[1722728033131,1.01740152,60840.0,60839.0,0.010175]
[1722728033586,1.02640152,60840.0,60839.0,0.010175]
[1722728033808,0.410947,60835.0,60834.0,0.010175]
[1722728034013,0.87513781,60835.0,60834.0,0.010175]
[1722728034230,1.03945052,60835.0,60834.0,0.010175]
[1722728034657,0.99812079,60835.0,60834.0,0.010175]
[1722728034879,0.9981207,60835.0,60834.0,0.010175]
[1722728035090,0.99809966,60835.0,60834.0,0.010175]
[1722728035287,0.88404973,60835.0,60834.0,0.010175]
[1722728035442,1.00710367,60835.0,60834.0,0.010175]
[1722728035987,1.17148267,60835.0,60834.0,0.010175]
[1722728036575,1.05842873,60835.0,60834.0,0.010175]
[1722728036738,1.1814838,60835.0,60834.0,0.010175]
[1722728036951,1.0842197,60835.0,60834.0,0.010175]
[1722728037353,1.05842873,60835.0,60834.0,0.010175]
[1722728037975,1.06988383,60835.0,60834.0,0.010175]
[1722728038608,1.06983747,60835.0,60834.0,0.010175]
[1722728038989,1.06983713,60835.0,60834.0,0.010175]
[1722728040643,1.0956281,60835.0,60834.0,0.010175]
[1722728041867,1.06983713,60835.0,60834.0,0.010175]
[1722728042597,0.30576024,60835.0,60834.0,0.48984215]
[1722728042764,0.22898023,60835.0,60834.0,0.54711817]
[1722728042966,0.1304551,60835.0,60834.0,0.54711817]
[1722728043547,0.45091141,60835.0,60834.0,0.470075]
[1722728043751,0.2126441,60835.0,60834.0,0.470075]
[1722728043949,0.38513938,60835.0,60834.0,0.48984215]
[1722728044165,0.1304551,60835.0,60834.0,0.48984215]
[1722728044367,0.20435662,60835.0,60834.0,0.48984215]
[1722728045223,0.23014703,60835.0,60834.0,0.48984215]
[1722728045598,0.23014703,60835.0,60834.0,0.54711817]
[1722728045807,0.31233603,60835.0,60834.0,0.48984215]
[1722728046188,0.15624551,60835.0,60834.0,0.48984215]
[1722728047831,0.25479246,60835.0,60834.0,0.48984215]
[1722728048040,0.15624551,60835.0,60834.0,0.48984215]
[1722728048485,0.15624551,60835.0,60834.0,0.54711817]
[1722728048659,0.15624551,60835.0,60834.0,0.48984215]
[1722728048660,0.25479246,60835.0,60834.0,0.48984215]
[1722728049082,0.15624551,60835.0,60834.0,0.48984215]
[1722728049527,0.25479246,60835.0,60834.0,0.48984215]
[1722728049727,0.15624551,60835.0,60834.0,0.48984215]
[1722728050104,0.25479246,60835.0,60834.0,0.48984215]
[1722728050876,0.23021681,60835.0,60834.0,0.48984215]
[1722728051504,0.31240581,60835.0,60834.0,0.48984215]
[1722728051738,0.47678481,60835.0,60834.0,0.470075]
[1722728051899,0.8069147,60835.0,60834.0,0.010175]
[1722728052109,0.90779475,60835.0,60834.0,0.010175]
[1722728052524,0.88200434,60835.0,60834.0,0.010175]
[1722728054601,0.86300434,60835.0,60834.0,0.010175]
[1722728054790,0.86261518,60835.0,60834.0,0.010175]
[1722728054995,0.88361518,60835.0,60834.0,0.010175]
[1722728055200,1.03799418,60835.0,60834.0,0.010175]
[1722728055410,1.06099418,60835.0,60834.0,0.010175]
[1722728055599,1.07099418,60835.0,60834.0,0.010175]
[1722728056043,1.09678589,60835.0,60834.0,0.010175]
[1722728056190,1.08578589,60835.0,60834.0,0.010175]
[1722728056400,1.09678589,60835.0,60834.0,0.010175]
[1722728056995,1.08578589,60835.0,60834.0,0.010175]
[1722728057389,0.93440689,60835.0,60834.0,0.010175]
[1722728057788,0.92440689,60835.0,60834.0,0.010175]
[1722728058097,0.93540689,60835.0,60834.0,0.010175]
[1722728058313,0.823916,60835.0,60834.0,0.010175]
[1722728058523,0.92462706,60835.0,60834.0,0.010175]
[1722728058731,0.93554417,60835.0,60834.0,0.010175]
[1722728061121,0.90975246,60835.0,60834.0,0.010175]
[1722728062277,0.72237346,60835.0,60834.0,0.010175]
[1722728062441,0.72237346,60835.0,60834.0,0.227475]
[1722728063135,0.84556705,60835.0,60834.0,0.227475]
[1722728064401,0.87135813,60835.0,60834.0,0.227475]
[1722728064532,0.91254354,60835.0,60834.0,0.227475]
[1722728065568,0.88675246,60835.0,60834.0,0.227475]
[1722728066034,0.88675246,60835.0,60834.0,0.010175]
[1722728066980,1.05113146,60835.0,60834.0,0.010175]
[1722728067201,1.07413146,60835.0,60834.0,0.010175]
[1722728067409,1.22196803,60835.0,60834.0,0.010175]
[1722728068456,0.246592,60829.0,60828.0,0.454]
[1722728068632,0.58694236,60829.0,60828.0,0.454]
[1722728068909,0.75133736,60829.0,60828.0,0.454]
[1722728069267,0.75146808,60829.0,60828.0,0.454]
[1722728069831,0.75146808,60829.0,60810.0,0.4684]
[1722728069832,0.0742,60827.0,60816.0,0.2082]
[1722728070040,0.24664,60817.0,60816.0,0.2082]
[1722728070163,0.85154808,60817.0,60816.0,0.2082]
[1722728070354,0.68712108,60817.0,60816.0,0.2082]
[1722728071204,0.85154808,60817.0,60816.0,0.2082]
[1722728071617,0.0739713,60817.0,60816.0,0.55286567]
[1722728071819,0.04929544,60824.0,60823.0,0.00976715]
[1722728071997,0.04929544,60824.0,60823.0,0.2082]
[1722728071998,0.15614716,60824.0,60823.0,0.2082]
[1722728072199,0.65086528,60824.0,60823.0,0.2082]
[1722728072397,0.79991215,60824.0,60823.0,0.2082]
[1722728072633,0.246633,60819.0,60818.0,0.28686715]
[1722728072825,0.41238389,60819.0,60818.0,0.28686715]
[1722728073052,0.51098123,60819.0,60818.0,0.28686715]
[1722728073218,0.51098123,60819.0,60818.0,0.49506715]
[1722728073219,0.48643586,60819.0,60818.0,0.49506715]
[1722728073440,0.71050903,60819.0,60818.0,0.49506715]
[1722728073641,0.48643586,60819.0,60818.0,0.49506715]
[1722728073823,0.60967772,60819.0,60818.0,0.49506715]
[1722728074031,0.71069502,60819.0,60818.0,0.49506715]
[1722728074233,0.60967772,60819.0,60818.0,0.49506715]
[1722728074462,0.48643586,60819.0,60818.0,0.49506715]
[1722728074861,0.41238389,60819.0,60818.0,0.49506715]
[1722728075023,0.49046101,60819.0,60818.0,0.49506715]
[1722728075230,0.35054515,60819.0,60818.0,0.49506715]
[1722728075436,0.26833415,60819.0,60818.0,0.49506715]
[1722728075837,0.27433415,60819.0,60818.0,0.49506715]
[1722728076048,0.35654515,60819.0,60818.0,0.49506715]
[1722728076490,0.42238389,60819.0,60818.0,0.49506715]
[1722728076692,0.61968739,60819.0,60818.0,0.49506715]
[1722728076892,0.64548364,60819.0,60818.0,0.49506715]
[1722728077495,0.44818014,60819.0,60818.0,0.49506715]
[1722728077903,0.7465144,60819.0,60818.0,0.49506715]
[1722728078115,0.64549705,60819.0,60818.0,0.49506715]
[1722728078307,0.44818014,60819.0,60818.0,0.49506715]
[1722728078729,0.28375814,60819.0,60818.0,0.49506715]
[1722728078966,0.38232932,60819.0,60818.0,0.49506715]
[1722728079182,0.38232898,60819.0,60818.0,0.49506715]
[1722728079344,0.54675098,60819.0,60818.0,0.54540305]
[1722728079548,0.28375814,60819.0,60818.0,0.54540305]
[1722728079757,0.48106197,60819.0,60818.0,0.54540305]
[1722728080571,0.35782011,60819.0,60818.0,0.54540305]
[1722728081340,0.48106197,60819.0,60818.0,0.54540305]
[1722728081552,0.4810062,60819.0,60818.0,0.54540305]
[1722728082185,0.35782011,60819.0,60818.0,0.54540305]
[1722728082357,0.35782011,60819.0,60818.0,0.49506715]
[1722728083148,0.4305631,60819.0,60818.0,0.49506715]
[1722728085220,0.44179223,60819.0,60818.0,0.49506715]
[1722728085629,0.34325299,60819.0,60818.0,0.49506715]
[1722728085855,0.34325299,60819.0,60818.0,0.54540305]
[1722728086280,0.34307943,60819.0,60818.0,0.54540305]
[1722728086497,0.36905,60819.0,60818.0,0.54540305]
[1722728086882,0.36905,60819.0,60818.0,0.49506715]
[1722728087092,0.286839,60819.0,60818.0,0.49506715]
[1722728087511,0.26104278,60819.0,60818.0,0.49506715]
[1722728087717,0.33492901,60819.0,60818.0,0.49506715]
[1722728087922,0.41714001,60819.0,60818.0,0.49506715]
[1722728088130,0.34325378,60819.0,60818.0,0.49506715]
[1722728088755,0.41713713,60819.0,60818.0,0.49506715]
[1722728089175,0.34325378,60819.0,60818.0,0.49506715]
[1722728089384,0.082215,60816.0,60815.0,0.22756715]
[1722728089593,0.36882865,60816.0,60815.0,0.22756715]
[1722728089798,0.46735036,60816.0,60815.0,0.22756715]
[1722728090018,0.36882865,60816.0,60815.0,0.22756715]
[1722728090919,0.49314683,60816.0,60815.0,0.22756715]
[1722728091119,0.63177995,60816.0,60815.0,0.22756715]
[1722728091323,0.46934995,60816.0,60815.0,0.22756715]
[1722728091738,0.37082865,60816.0,60815.0,0.22756715]
[1722728092162,0.53525865,60816.0,60815.0,0.2078]
[1722728092923,0.164435,60814.0,60812.0,0.01]
[1722728093124,0.164435,60814.0,60811.0,0.2078]
[1722728093125,0.50961252,60814.0,60813.0,0.01]
[1722728093324,0.60832604,60814.0,60813.0,0.01976715]
[1722728093524,0.082219,60813.0,60812.0,0.01976715]
[1722728093752,0.41927241,60813.0,60812.0,0.01976715]
[1722728094426,0.4450702,60813.0,60812.0,0.01976715]
[1722728094633,0.411102,60812.0,60811.0,0.2078]
[1722728094859,0.74947016,60812.0,60811.0,0.2078]
[1722728095033,0.082226,60808.0,60807.0,0.22756715]
[1722728095241,0.46169466,60808.0,60807.0,0.22756715]
[1722728096039,0.41242889,60808.0,60807.0,0.22756715]
[1722728096465,0.46169466,60808.0,60807.0,0.22756715]
[1722728097250,0.65077955,60808.0,60807.0,0.22756715]
[1722728097453,0.67907081,60808.0,60807.0,0.22756715]
[1722728097653,0.58053908,60808.0,60807.0,0.22756715]
[1722728097858,0.74499108,60808.0,60807.0,0.22756715]
[1722728098240,0.74599108,60808.0,60807.0,0.2178]
[1722728098843,0.77179021,60808.0,60807.0,0.2178]
[1722728099046,0.77279021,60808.0,60807.0,0.2078]
[1722728099250,0.74699108,60808.0,60807.0,0.2178]
[1722728099501,0.74599108,60808.0,60807.0,0.2078]
[1722728099699,0.411135,60807.0,60806.0,0.010175]
[1722728099904,0.79179608,60807.0,60806.0,0.010175]
[1722728100105,1.07925008,60807.0,60806.0,0.010175]
[1722728100475,1.03245008,60807.0,60806.0,0.010175]
[1722728100700,1.07925008,60807.0,60806.0,0.010175]
[1722728101719,0.41117,60802.0,60798.0,0.01976715]
[1722728102019,0.41117,60802.0,60795.0,0.010175]
[1722728102020,0.41121,60796.0,60795.0,0.010175]
[1722728102184,0.79187108,60796.0,60795.0,0.010175]
[1722728102391,0.81767684,60796.0,60795.0,0.010175]
[1722728102640,0.81767684,60796.0,60793.0,0.01976715]
[1722728102641,0.411222,60794.0,60793.0,0.01]
[1722728102915,0.84508308,60794.0,60793.0,0.01]
[1722728103147,0.68059408,60794.0,60793.0,0.01976715]
[1722728103350,0.39116764,60794.0,60793.0,0.54864387]
[1722728103548,0.22332202,60794.0,60793.0,0.49876715]
[1722728103953,0.1,60794.0,60793.0,0.49876715]
[1722728104200,0.04921983,60795.0,60794.0,0.22756715]
[1722728104201,0.05079422,60795.0,60794.0,0.22756715]
[1722728104416,0.07575476,60795.0,60794.0,0.5806852]
[1722728104601,0.04921983,60797.0,60796.0,0.4765]
[1722728104780,0.12338884,60797.0,60796.0,0.48626715]
[1722728105004,0.04921983,60798.0,60797.0,0.01976715]
[1722728105210,0.1233885,60798.0,60797.0,0.01976715]
[1722728106371,0.1373885,60798.0,60797.0,0.01976715]
[1722728106573,0.13736455,60798.0,60797.0,0.01976715]
[1722728107271,0.014,60798.0,60797.0,0.01976715]
[1722728107426,0.06319588,60798.0,60797.0,0.27298567]
[1722728108182,0.014,60798.0,60797.0,0.27298567]
[1722728108459,0.06319588,60798.0,60797.0,0.27298567]
[1722728108642,0.06319588,60798.0,60797.0,0.21606715]
[1722728108847,0.06319588,60798.0,60797.0,0.48626715]
[1722728109049,0.014,60798.0,60797.0,0.48626715]
[1722728110473,0.03980427,60798.0,60797.0,0.48626715]
[1722728110679,0.03980427,60798.0,60797.0,0.53489387]
[1722728110946,0.03380427,60798.0,60797.0,0.53489387]
[1722728111321,0.014,60798.0,60797.0,0.48626715]
[1722728111753,0.09358125,60800.0,60799.0,0.01976715]
[1722728111901,0.01134425,60800.0,60799.0,0.01976715]
[1722728112109,0.00157439,60800.0,60799.0,0.01976715]
[1722728112511,0.00157439,60801.0,60800.0,0.21606715]
[1722728112712,0.01270809,60801.0,60800.0,0.21606715]
[1722728112941,0.01270809,60801.0,60800.0,0.50787387]
[1722728113122,0.0111337,60801.0,60800.0,0.50787387]
[1722728113320,0.71970131,60802.0,60801.0,0.01976715]
[1722728113608,0.04920131,60804.0,60803.0,0.01976715]
[1722728113817,0.04920131,60804.0,60803.0,0.21606715]
[1722728114040,0.0601674,60804.0,60803.0,0.21606715]
[1722728114463,0.03676932,60804.0,60803.0,0.21606715]
[1722728114669,0.04276932,60804.0,60803.0,0.21606715]
[1722728114874,0.04276932,60804.0,60803.0,0.23923794]
[1722728115283,0.03180323,60804.0,60803.0,0.23923794]
[1722728115540,0.03180323,60804.0,60803.0,0.50943794]
[1722728115757,0.014,60804.0,60803.0,0.50943794]
[1722728116390,0.006,60804.0,60803.0,0.50943794]
[1722728117111,0.04923819,60810.0,60809.0,0.00976715]
[1722728117312,0.04923819,60810.0,60809.0,0.01976715]
[1722728117972,0.04923819,60810.0,60809.0,0.48626715]
[1722728118590,0.05523819,60810.0,60809.0,0.53489387]
[1722728118964,0.08103825,60810.0,60809.0,0.53489387]
[1722728119321,0.05523819,60810.0,60809.0,0.53489387]
[1722728119529,0.006,60810.0,60809.0,0.53489387]
[1722728119785,0.014,60810.0,60809.0,0.53489387]
[1722728121097,0.014,60810.0,60809.0,0.48626715]
[1722728122168,0.06323797,60810.0,60809.0,0.48626715]
[1722728122554,0.03979931,60810.0,60809.0,0.48626715]
[1722728122705,0.08903728,60810.0,60809.0,0.4765]
[1722728122908,0.11388312,60810.0,60809.0,0.4765]
[1722728123111,0.21235906,60810.0,60809.0,0.48626715]
[1722728123291,0.16195685,60810.0,60809.0,0.48626715]
[1722728123921,0.08808381,60810.0,60809.0,0.48626715]
[1722728124773,0.16195351,60810.0,60809.0,0.48626715]
[1722728126043,0.16195351,60810.0,60809.0,0.53489387]
[1722728126260,0.18657674,60810.0,60809.0,0.53489387]
[1722728126895,0.18657674,60810.0,60805.0,0.01976715]
[1722728126896,0.164449,60809.0,60805.0,0.01976715]
[1722728127102,0.246685,60806.0,60805.0,0.01976715]
[1722728127316,0.32076881,60806.0,60805.0,0.01976715]
[1722728127523,0.44388497,60806.0,60805.0,0.01976715]
[1722728127956,0.27942797,60806.0,60805.0,0.01976715]
[1722728128171,0.44388497,60806.0,60805.0,0.01976715]
[1722728128574,0.60838469,60806.0,60805.0,0.01976715]
[1722728128798,0.48722581,60806.0,60805.0,0.01976715]
[1722728129446,0.48522581,60806.0,60805.0,0.01976715]
[1722728129647,0.48922581,60806.0,60805.0,0.01976715]
[1722728130021,0.9103347,60806.0,60801.0,0.01976715]
[1722728130239,0.33900608,60805.0,60801.0,0.01976715]
[1722728130439,0.246702,60802.0,60801.0,0.01976715]
[1722728130618,0.32078581,60802.0,60801.0,0.01976715]
[1722728130816,0.32078581,60802.0,60801.0,0.04247387]
[1722728130817,0.4439675,60802.0,60801.0,0.04247387]
[1722728131058,0.34658989,60802.0,60801.0,0.02270672]
[1722728131465,0.34658989,60802.0,60798.0,0.01976715]
[1722728131466,0.082238,60799.0,60798.0,0.01976715]
[1722728131608,0.32079781,60799.0,60798.0,0.01976715]
[1722728131811,0.32857506,60799.0,60798.0,0.01976715]
[1722728132018,0.32857506,60799.0,60798.0,0.04572239]
[1722728132261,0.16409906,60799.0,60798.0,0.04572239]
[1722728132466,0.49432595,60799.0,60798.0,0.01976715]
[1722728132638,0.49275156,60799.0,60798.0,0.01976715]
[1722728132840,0.246721,60797.0,60796.0,0.22706715]
[1722728133054,0.32080481,60797.0,60796.0,0.28878015]
[1722728133249,0.42709616,60797.0,60796.0,0.28878015]
[1722728133449,0.42553016,60797.0,60796.0,0.28878015]
[1722728133672,0.26104826,60797.0,60796.0,0.28878015]
[1722728133851,0.26262265,60797.0,60796.0,0.22706715]
[1722728134064,0.16405473,60797.0,60796.0,0.22706715]
[1722728134524,0.2626289,60797.0,60796.0,0.22706715]
[1722728134727,0.2626289,60797.0,60796.0,0.22906715]
[1722728134895,0.18986028,60797.0,60796.0,0.22906715]
[1722728135279,0.28843445,60797.0,60796.0,0.22906715]
[1722728135528,0.28686006,60797.0,60796.0,0.22706715]
[1722728135718,0.20462006,60797.0,60796.0,0.22906715]
[1722728135935,0.08024034,60797.0,60796.0,0.22906715]
[1722728136121,0.08181473,60797.0,60796.0,0.22906715]
[1722728136843,0.08181473,60797.0,60796.0,0.28546697]
[1722728137005,0.08181473,60797.0,60796.0,0.28346697]
[1722728137695,0.08881473,60797.0,60796.0,0.28346697]
[1722728137900,0.08881473,60797.0,60796.0,0.28546697]
[1722728138102,0.08881473,60797.0,60796.0,0.28346697]
[1722728138527,0.09281473,60797.0,60796.0,0.28346697]
[1722728138728,0.18982547,60797.0,60796.0,0.28346697]
[1722728138889,0.08512501,60797.0,60796.0,0.28346697]
[1722728139289,0.21551535,60797.0,60796.0,0.28346697]
[1722728139554,0.17248034,60797.0,60796.0,0.28346697]
[1722728139887,0.27106547,60797.0,60796.0,0.28346697]
[1722728140085,0.27106547,60797.0,60796.0,0.22706715]
[1722728140606,0.28219829,60797.0,60796.0,0.22706715]
[1722728141900,0.28221879,60797.0,60796.0,0.22706715]
[1722728142444,0.18361316,60797.0,60796.0,0.22706715]
[1722728142844,0.30802772,60797.0,60796.0,0.22706715]
[1722728143239,0.17761316,60797.0,60796.0,0.22706715]
[1722728143371,0.27622295,60797.0,60796.0,0.22706715]
[1722728143977,0.27222295,60797.0,60796.0,0.22706715]
[1722728144233,0.17961316,60797.0,60796.0,0.22706715]
[1722728144455,0.28222273,60797.0,60796.0,0.22706715]
[1722728144859,0.28622273,60797.0,60796.0,0.22706715]
[1722728145853,0.41121,60796.0,60795.0,0.02068015]
[1722728146142,0.6122625,60796.0,60795.0,0.02068015]
[1722728146265,0.52582377,60796.0,60795.0,0.02068015]
[1722728146436,0.55163078,60796.0,60795.0,0.02068015]
[1722728146645,0.38588002,60796.0,60795.0,0.02068015]
[1722728146883,0.38588002,60796.0,60795.0,0.05097997]
[1722728147084,0.39088002,60796.0,60795.0,0.05097997]
[1722728147915,0.39388002,60796.0,60795.0,0.05097997]
[1722728148317,0.31163802,60796.0,60795.0,0.48368015]
[1722728148534,0.21163802,60796.0,60795.0,0.48368015]
[1722728148737,0.11392972,60796.0,60795.0,0.48368015]
[1722728149320,0.23719179,60796.0,60795.0,0.48368015]
[1722728149881,0.11392972,60796.0,60795.0,0.48368015]
[1722728150222,0.11392972,60796.0,60795.0,0.54033997]
[1722728150566,0.19617172,60796.0,60795.0,0.48368015]
[1722728150800,0.36065572,60796.0,60795.0,0.02068015]
[1722728151779,0.19617172,60796.0,60795.0,0.02068015]
[1722728152339,0.29241039,60796.0,60795.0,0.02068015]
[1722728152542,0.19617172,60796.0,60795.0,0.02068015]
[1722728153179,0.21009513,60796.0,60795.0,0.02068015]
[1722728153404,0.11392972,60796.0,60795.0,0.07733997]
[1722728153743,0.23722438,60796.0,60795.0,0.07733997]
[1722728154391,0.23722577,60796.0,60795.0,0.07733997]
[1722728154811,0.21013931,60796.0,60795.0,0.07733997]
[1722728155108,0.21013931,60796.0,60795.0,0.54033997]
[1722728155518,0.33343199,60796.0,60795.0,0.54033997]
[1722728156870,0.2372224,60796.0,60795.0,0.54033997]
[1722728157072,0.33339835,60796.0,60795.0,0.54033997]
[1722728157694,0.21010567,60796.0,60795.0,0.54033997]
[1722728158723,0.18429866,60796.0,60795.0,0.54033997]
[1722728159164,0.08812271,60796.0,60795.0,0.54033997]
[1722728159323,0.0140389,60796.0,60795.0,0.54033997]
[1722728160107,0.0090389,60796.0,60795.0,0.54033997]
[1722728160616,0.003,60796.0,60795.0,0.54033997]
[1722728160996,0.04930776,60802.0,60801.0,0.01976715]
[1722728161199,0.04930776,60802.0,60801.0,0.5656852]
[1722728161462,0.12344075,60802.0,60801.0,0.5656852]
[1722728161893,0.07413299,60802.0,60801.0,0.5656852]
[1722728162061,0.07413299,60803.0,60802.0,0.01976715]
[1722728162264,0.0492981,60805.0,60804.0,0.00976715]
[1722728162521,0.12341704,60805.0,60804.0,0.20916715]
[1722728162756,0.12341704,60805.0,60804.0,0.54621393]
[1722728162957,0.07411894,60805.0,60804.0,0.54621393]
[1722728163570,0.0492981,60807.0,60806.0,0.01976715]
[1722728164052,0.12340437,60807.0,60806.0,0.21916715]
[1722728164204,0.12340437,60807.0,60806.0,0.48276715]
[1722728164815,0.00083,60810.0,60807.0,0.45746715]
[1722728164816,0.0492981,60808.0,60807.0,0.45746715]
[1722728165022,0.00083,60810.0,60809.0,0.45746715]
[1722728165237,0.00083,60810.0,60809.0,0.5403852]
[1722728166326,0.02662793,60810.0,60809.0,0.5403852]
[1722728166828,0.02662793,60810.0,60809.0,0.45746715]
[1722728167229,0.07591653,60810.0,60809.0,0.45746715]
[1722728168170,0.07591653,60810.0,60809.0,0.45946715]
[1722728168400,0.07791653,60810.0,60809.0,0.45946715]
[1722728168612,0.02662793,60810.0,60809.0,0.50341387]
[1722728169003,0.03262793,60810.0,60809.0,0.50341387]
[1722728169185,0.03062793,60810.0,60809.0,0.50341387]
[1722728169504,0.02862793,60810.0,60809.0,0.50341387]
[1722728169899,0.03262793,60810.0,60809.0,0.50341387]
[1722728170305,0.08191653,60810.0,60809.0,0.25821387]
[1722728170454,0.08191653,60810.0,60809.0,0.21226715]
[1722728171414,0.246673,60809.0,60808.0,0.01976715]
[1722728171646,0.246673,60809.0,60801.0,0.01976715]
[1722728171647,0.164468,60802.0,60801.0,0.01976715]
[1722728171860,0.58508353,60802.0,60801.0,0.01976715]
[1722728172061,0.58508353,60802.0,60798.0,0.5153313]
[1722728172062,0.55277399,60802.0,60800.0,0.01976715]
[1722728172284,0.246709,60800.0,60799.0,0.01976715]
[1722728172462,0.082238,60799.0,60798.0,0.53509845]
[1722728172684,0.18159591,60799.0,60798.0,0.53509845]
[1722728173077,0.18159591,60799.0,60795.0,0.000913]
[1722728173078,0.57230599,60799.0,60797.0,0.01]
[1722728173277,0.57230599,60799.0,60795.0,0.000913]
[1722728173278,0.246726,60796.0,60795.0,0.000913]
[1722728173481,0.77365531,60796.0,60795.0,0.000913]
[1722728173684,0.8752297,60796.0,60795.0,0.000913]
[1722728173859,1.0230955,60796.0,60795.0,0.000913]
[1722728174067,1.02152111,60796.0,60795.0,0.000913]
[1722728174918,1.04732732,60796.0,60795.0,0.000913]
[1722728175327,0.90046152,60796.0,60795.0,0.000913]
[1722728175535,0.90203591,60796.0,60795.0,0.000913]
[1722728175957,0.90884643,60796.0,60795.0,0.000913]
[1722728176578,1.05668394,60796.0,60795.0,0.000913]
[1722728176790,1.16447154,60796.0,60795.0,0.000913]
[1722728177215,0.89713846,60796.0,60795.0,0.000913]
[1722728177427,0.89871285,60796.0,60795.0,0.000913]
[1722728177633,0.89713846,60796.0,60795.0,0.000913]
[1722728180111,1.04313719,60796.0,60795.0,0.000913]
[1722728180311,0.082254,60787.0,60786.0,0.01976715]
[1722728180669,0.26930203,60787.0,60786.0,0.01976715]
[1722728180877,0.34318451,60787.0,60786.0,0.01976715]
[1722728181504,0.26930203,60787.0,60786.0,0.01976715]
[1722728181620,0.43581003,60787.0,60786.0,0.02176715]
[1722728181818,0.50969251,60787.0,60786.0,0.02176715]
[1722728182650,0.34518451,60787.0,60786.0,0.02176715]
[1722728182862,0.27130203,60787.0,60786.0,0.02176715]
[1722728183502,0.34634877,60787.0,60786.0,0.02176715]
[1722728183703,0.34767548,60787.0,60786.0,0.02176715]
[1722728184059,0.26542142,60787.0,60786.0,0.02176715]
[1722728184329,0.26542142,60787.0,60786.0,0.44986715]
[1722728184330,0.05043359,60787.0,60786.0,0.44986715]
[1722728184524,0.03460766,60787.0,60786.0,0.49687137]
[1722728186057,0.02780974,60787.0,60786.0,0.50687137]
[1722728186254,0.002,60787.0,60786.0,0.49687137]
[1722728186851,0.002,60787.0,60786.0,0.50687137]
[1722728187345,0.002,60787.0,60786.0,0.49687137]
[1722728188929,0.002,60787.0,60786.0,0.58912637]
[1722728189103,0.002,60787.0,60786.0,1.08589926]
[1722728189308,0.12309236,60803.0,60786.0,1.08589926]
[1722728189309,0.04923694,60804.0,60803.0,0.01]
[1722728189503,0.04923694,60807.0,60805.0,0.01976715]
[1722728189680,0.06087266,60810.0,60809.0,0.01976715]
[1722728189972,0.07764252,60810.0,60809.0,0.04353972]
[1722728190096,0.02840558,60810.0,60809.0,0.04353972]
[1722728190671,0.00083,60810.0,60809.0,0.04353972]
[1722728190873,0.03178238,60810.0,60809.0,0.04353972]
[1722728191473,0.04278238,60810.0,60809.0,0.04353972]
[1722728192057,0.05178238,60810.0,60809.0,0.04353972]
[1722728193369,0.03178238,60810.0,60809.0,0.04353972]
[1722728193788,0.03478238,60810.0,60809.0,0.04453972]
[1722728193937,0.06058276,60810.0,60809.0,0.04453972]
[1722728194138,0.04442564,60810.0,60809.0,0.04553972]
[1722728194397,0.03994965,60810.0,60809.0,0.04553972]
[1722728197258,0.04226769,60810.0,60809.0,0.04553972]
[1722728197567,0.06806826,60810.0,60809.0,0.04553972]
[1722728197876,0.06844301,60810.0,60809.0,0.04553972]
[1722728198198,0.06855195,60810.0,60809.0,0.04553972]
[1722728198644,0.04275138,60810.0,60809.0,0.28543972]
[1722728198964,0.04275138,60810.0,60809.0,0.45243972]
[1722728199815,0.12497438,60810.0,60809.0,0.04553972]
[1722728200594,0.45517127,60810.0,60809.0,0.02176715]
[1722728201813,0.29072527,60810.0,60809.0,0.02176715]
[1722728202136,0.48097387,60810.0,60809.0,0.02176715]
[1722728202335,0.45517127,60810.0,60809.0,0.02176715]
[1722728203635,0.66881396,60810.0,60809.0,0.02176715]
[1722728203843,0.66881396,60810.0,60809.0,0.012]
[1722728203844,1.00373575,60810.0,60809.0,0.012]
[1722728204042,1.10212913,60810.0,60809.0,0.002]
[1722728204377,1.12672747,60810.0,60809.0,0.002]
[1722728204636,1.12672747,60810.0,60801.0,0.01976715]
[1722728204637,0.42817475,60810.0,60801.0,0.01976715]
[1722728204848,0.082234,60802.0,60801.0,0.01976715]
[1722728205128,0.082234,60802.0,60801.0,0.04626567]
[1722728205129,0.41086322,60802.0,60801.0,0.04626567]
[1722728205344,0.61003216,60802.0,60801.0,0.02649852]
[1722728205559,0.246709,60800.0,60799.0,0.01976715]
[1722728205769,0.57662313,60800.0,60799.0,0.01976715]
[1722728205948,0.58671123,60800.0,60799.0,0.01976715]
[1722728206589,0.42223823,60800.0,60799.0,0.01976715]
[1722728206739,0.42224069,60800.0,60799.0,0.01976715]
[1722728207062,0.32351231,60800.0,60799.0,0.06600697]
[1722728207364,0.32351231,60800.0,60799.0,0.07000697]
[1722728207573,0.48898531,60800.0,60799.0,0.07600697]
[1722728207701,0.32451231,60800.0,60799.0,0.02976715]
[1722728208117,0.38242625,60800.0,60799.0,0.02976715]
[1722728208323,0.39814226,60800.0,60799.0,0.02976715]
[1722728208533,0.02801128,60800.0,60799.0,0.38856715]
[1722728208759,0.02801128,60800.0,60799.0,0.43580697]
[1722728209335,0.05356414,60800.0,60799.0,0.43580697]
[1722728209635,0.02775973,60800.0,60799.0,0.43580697]